Workbook

Sheet BOQ metal & Wood
A1: Materials for houses and latrine reconstruction (Metal & Wood)
B2: 1-The price shall include the transportation, loading and offloading
B3: 2- Any test for the materials shall be on the supplier cost at any delivery
B4: 3- The supplier shall comply with the specification in English, the Portuguese only for translation
B5: 4- The material will be supplied gradually, according to propose schedule
B6: 5- certification of materials specifications to be presented for engineer approval before delivery
B7: 6- UNDP has the right to refuse any delivery in case the supplied materials not corresponding to the specifications
B8: 7- Location of delivery is to Mutua
B9: 8- The actual cost will be paid according to the actual supply materials.
B10: 9- UNDP has the right to increase or decrease any item in the BOQ up to 25%.
B11: 10- UNDP has the right to cancel any item in the BOQ
A13: Ord. | B13: Materials | C13: Un | D13: Quantity | E13: P.Unitary Supplier | F13: P. Total 1
A15: 1 | B15: PINE BEAM Not treated, solid wood: 1- Minmuim dimension 50X150X 5500mm 2- Minimum Shear load 11 KN 3- Bending moment 5 KN/M | C15: ml | D15: =(48+3*1.9)*250 -> 13425 | F15: =+E15*D15 -> 0
B16: Barrote de pinho em Madeira macica 1- Dimensão minima 50X150X5500mm 2- Carga de corte mínima 11 KN 3- Momento fletor 5 KN / M
A17: 2 | B17: PINE BEAM Not treated solid wood : 1- Minmuim dimension 50X75X 5500mm 2- Minimum Shear load 11 KN 3- Bending moment 5 KN/M | C17: ml | D17: =(82.5+5*1.8)*250 -> 22875 | F17: =+E17*D17 -> 0
B18: Barrote de pinho em Madeira macica 1- Minima dimensão 50X75X 5500mm 2- Minimum Shear load 11 KN 3- Bending moment 5 KN/M
A19: 3 | B19: Resilient tape 10m: 1- Tensile strength 280kPa. 2-Elongation 250% | C19: m | D19: =25*250 -> 6250 | F19: =+E19*D19 -> 0
B20: Fita resiliente 1. Resistência à tração 280kPa. 2-alongamento 250%
A21: 4 | B21: Self tapping Screw 4" 1-Made from case hardened steel | C21: un | D21: =350*250 -> 87500 | F21: =+E21*D21 -> 0
B22: Parafuso autoroscante 4" feito de aço temperado com ganchos ou vedante de borracha
A23: 5 | B23: Nail 5” Made from hardened steel | C23: kg | D23: =10*250 -> 2500 | F23: =+E23*D23 -> 0
B24: Prego 5”feito de aço temperado
A25: 6 | B25: Nail 3” Made from case hardened steel | C25: Kg | D25: =10*250 -> 2500 | F25: =+E25*D25 -> 0
B26: Prego de ferro 3”feito de aço temperado
A27: 7 | B27: Wooden door frame : 1-Door frame should be from solid wood 2- Minimum thickness 1.2 cm 3- Minimum width is 11 cm | C27: un | D27: =2*250 -> 500 | F27: =+E27*D27 -> 0
B28: Aro de porta 1. em Madeira macica 2- Espessura mínima 1,2 cm 3- A largura mínima é 11 cm
A29: 8 | B29: Wooden door (83X210x3 cm) : 1-Solid wood frame made. | C29: un | D29: =2*250 -> 500 | F29: =+E29*D29 -> 0
B30: Porta madeira (83x210x3 cm) 1. Madeira macica
A31: 9 | B31: Wooden Window frame from solid wood : 1-Minmuim thickness is 70mm | C31: un | D31: =3*250 -> 750 | F31: =+E31*D31 -> 0
B32: Aro de janela em madeira maciça 1. espessura minima de 70cm
A33: 10 | B33: Wooden windows from solid wood : 2- The wood shall be chamfered 3- Soft woods such as pine, fir or cypress | C33: un | D33: =6*250 -> 1500 | F33: =+E33*D33 -> 0
B34: Janela em madeira maciça 1. A madeira deve ser de chanfuta
A35: 11 | B35: solid wood for window frame leaf | C35: un | D35: =6*250 -> 1500 | F35: =+E35*D35 -> 0
B36: Caixilho de Janela em madeira maciça
A37: 12 | B37: Mosquito net 1.2 m height: 1- The Net should be according the WHO standards regarding Malaria protection. 2- PVC Coated Fiberglass Window Netting Mosquito Plastic Screen | C37: m² | D37: =6*250 -> 1500 | F37: =+E37*D37 -> 0
B38: Rede mosquiteira plastica 1.20m altura 1- A rede deve estar de acordo com os padrões da OMS quanto à proteção da malária. 2- Tela de plástico mosquiteiro com tela de fibra de vidro revestida de PVC
A39: 13 | B39: Wire Mesh for plastering 1.2 m height : 1- from sheet steel blade | C39: m² | D39: =4*250 -> 1000 | F39: =+E39*D39 -> 0
B40: Arame rede galineira, 1.20m altura 1. Fabricado por aço
A41: 14 | B41: Scarper 4" | C41: un | D41: 300 | F41: =+E41*D41 -> 0
B42: Raspadeira do pintor 4"
A43: 15 | B43: Twisted wire for steel | C43: Kg | D43: =10*250 -> 2500 | F43: =+E43*D43 -> 0
B44: Arame queimado
A45: 16 | B45: Wood for formwork: 1- should be new clean and not stored under the sun. 2- 15X122X244cm | C45: un | D45: =2*250 -> 500 | F45: =+E45*D45 -> 0
B46: Contraplacado maritimo para cofragem de vigas e pilares 1- deve ser novo, limpo e não armazenado ao sol. 2- 15X122X244cm
A47: 17 | B47: Locks forExterial door: 1-Made from Nickel 2- length 45 mm | C47: un | D47: =1*250 -> 250 | F47: =+E47*D47 -> 0
B48: Fechadura exeterior 1-Fabricado em Níquel 2-comprimento 45 mm
A49: 18 | B49: Heavy duty stainless steel hinges 4" | C49: un | D49: =3*250 -> 750 | F49: =+E49*D49 -> 0
B50: Dobradiça resistente de aço inoxidavel de 4"
A51: 19 | B51: Heavy duty stainless steel hinges 3" for window | C51: un | D51: =6*250 -> 1500 | F51: =+E51*D51 -> 0
B52: Dobradiça resistente de aço inoxidavel de 3"
A53: 20 | B53: Window lock | C53: un | D53: =6*250 -> 1500 | F53: =+E53*D53 -> 0
B54: Tranqueta de janela
A55: 21 | B55: Metal profil to fixing the purlin on the truss 0.6x0.25mm (hurricane clips roof) | C55: un | D55: =(16*5+5+15)*2*250 -> 50000 | F55: =+E55*D55 -> 0
B56: Perfil metalico para fixação das madres na asna 0.6x0.25mm (hurricane clips roof)
B57: Grand Total | F57: =SUM(F15:F56) -> 0
